bitfinex/quotes_ETHUSD_20240730
["timestamp","ask_amount","ask_price","bid_price","bid_amount"]
[1722368467714,6.05362,3274.8,3274.2,3.05417]
[1722368467923,3.0,3274.8,3274.3,3.05408]
[1722368468074,6.05353,3274.9,3274.4,3.05391]
[1722368468277,3.05364,3274.8,3274.2,3.664939]
[1722368468474,3.0538,3274.6,3274.0,3.05436]
[1722368468785,3.0539,3274.5,3274.0,3.05431]
[1722368468976,3.0538,3274.6,3274.1,3.05427]
[1722368469175,3.05362,3274.8,3274.1,3.05418]
[1722368469425,3.0,3274.7,3274.3,3.05407]
[1722368470442,6.05373,3274.7,3274.2,3.05417]
[1722368473159,3.0,3274.7,3274.3,3.05405]
[1722368473369,2.2721,3275.1,3274.3,0.06107977]
[1722368473496,3.05383,3274.6,3273.9,3.05443]
[1722368473720,2.2721,3274.4,3273.9,3.05443]
[1722368473915,5.32609,3274.4,3273.9,3.05443]
[1722368474120,0.04649507,3274.3,3273.8,3.05447]
[1722368474350,0.04649507,3274.3,3273.6,3.05468]
[1722368474570,0.04649507,3274.3,3273.8,3.05451]
[1722368475182,0.04649507,3274.3,3273.7,0.305468]
[1722368475355,3.10065507,3274.3,3273.7,3.360068]
[1722368475679,3.0,3274.2,3273.7,3.360068]
[1722368476134,0.04646478,3274.1,3273.7,3.360068]
[1722368476723,0.04646478,3274.1,3273.8,3.0545]
[1722368477040,0.04646478,3274.1,3273.9,3.0544]
[1722368477263,0.04646478,3274.1,3274.0,6.10872]
[1722368477865,9.10749,3274.7,3274.1,3.05427]
[1722368478065,6.05372,3274.7,3273.8,3.6959448]
[1722368478370,3.05391,3274.5,3273.9,3.05445]
[1722368478540,3.0,3274.4,3274.0,3.05435]
[1722368479142,3.0,3274.4,3274.1,3.05422]
[1722368479341,3.05372,3274.7,3274.1,3.05422]
[1722368479342,3.0,3274.6,3274.2,3.05417]
[1722368479537,3.0,3274.7,3274.1,3.05427]
[1722368479776,6.05377,3274.7,3274.1,3.05427]
[1722368480135,3.05381,3274.6,3273.8,3.05449]
[1722368480367,6.05377,3274.7,3273.8,3.359939]
[1722368480368,6.0539,3274.5,3273.8,3.359939]
[1722368480567,6.0539,3274.5,3273.9,3.0544]
[1722368480734,3.0,3274.5,3274.0,3.05436]
[1722368480937,3.0,3274.6,3274.0,3.05432]
[1722368481269,6.05386,3274.6,3274.0,3.05432]
[1722368481454,6.05386,3274.6,3274.0,6.10863]
[1722368481654,6.05386,3274.6,3274.0,3.05431]
[1722368481852,3.0539,3274.5,3273.8,6.109]
[1722368482051,6.05404,3274.4,3273.8,3.05449]
[1722368482478,6.05404,3274.4,3273.8,6.10899]
[1722368482668,6.05404,3274.4,3274.0,3.05434]
[1722368482669,3.0,3274.4,3274.0,3.05434]
[1722368482872,6.05386,3274.6,3274.0,3.0543]
[1722368483184,3.0,3274.6,3274.1,3.05421]
[1722368483359,3.0,3274.7,3274.2,3.359531]
[1722368483563,7.21973338,3275.2,3274.6,3.05375]
[1722368483773,3.05338,3275.1,3274.5,3.05389]
[1722368483969,2.584,3275.1,3274.2,3.359561]
[1722368484151,3.05357,3274.9,3274.2,6.413651]
[1722368484351,3.05357,3274.9,3274.3,0.6413651]
[1722368484579,3.05352,3275.0,3274.4,3.05393]
[1722368484906,3.0535,3275.0,3274.4,3.05393]
[1722368485042,3.0,3274.9,3273.8,3.356599]
[1722368485240,3.0,3275.1,3274.7,3.05366]
[1722368485440,3.0,3275.1,3274.5,3.05383]
[1722368485645,6.05334,3275.1,3274.6,3.05379]
[1722368486389,3.0,3275.1,3274.7,3.05365]
[1722368486590,12.85676338,3275.5,3274.8,3.11465202]
[1722368486591,3.0,3275.2,3274.8,3.11465202]
[1722368486737,10.27270338,3275.5,3275.0,3.05337]
[1722368486738,3.0,3275.4,3275.0,3.05337]
[1722368487446,3.0,3275.4,3274.8,3.05353]
[1722368487988,3.0,3275.4,3274.6,3.05375]
[1722368488182,3.0,3275.4,3274.8,3.05353]
[1722368488369,3.0,3275.4,3274.9,3.05352]
[1722368488810,6.05308,3275.4,3274.9,3.05352]
[1722368489125,3.05323,3275.3,3274.6,3.05375]
[1722368489333,6.05331,3275.2,3274.6,3.05375]
[1722368489833,3.0,3275.2,3274.7,3.05366]
[1722368489976,3.0,3275.2,3274.8,3.05357]
[1722368490323,0.04400838,3275.1,3274.9,3.05347]
[1722368490480,0.04400838,3275.1,3275.0,3.05343]
[1722368490686,3.0,3275.4,3275.1,3.05333]
[1722368490916,2.2606,3275.7,3274.6,3.05378]
[1722368491097,0.55,3275.6,3275.1,3.05324]
[1722368491306,22.75241338,3275.8,3275.3,3.0531]
[1722368491497,3.05268,3275.8,3275.3,3.0531]
[1722368491830,5.34422,3276.0,3275.5,3.05296]
[1722368492032,2.2917,3276.0,3275.5,3.05296]
[1722368492195,7.21973338,3276.2,3275.6,0.06105673]
[1722368492399,7.21973338,3276.2,3275.6,3.05281]
[1722368492647,7.21973338,3276.2,3275.7,3.05277]
[1722368492648,10.27210338,3276.2,3275.7,3.05277]
[1722368493271,13.32448338,3276.2,3275.6,3.05286]
[1722368493837,3.05264,3275.9,3275.3,3.05312]
[1722368494035,3.05277,3275.8,3275.0,3.05337]
[1722368494248,3.05277,3275.8,3275.2,3.05321]
[1722368494476,3.05277,3275.8,3275.2,6.10639]
[1722368494796,3.05269,3275.8,3275.1,0.305337]
[1722368495137,3.05278,3275.7,3275.2,3.05323]
[1722368495536,3.05269,3275.8,3275.3,3.05314]
[1722368496035,3.05269,3275.8,3275.1,3.358627]
[1722368496287,13.27206338,3276.2,3274.8,3.05356]
[1722368496288,3.05288,3275.6,3274.8,3.05356]
[1722368496487,3.05343,3275.0,3274.4,3.05394]
[1722368496659,2.3006,3275.7,3274.6,3.05374]
[1722368496660,3.05333,3275.2,3274.6,3.05374]
[1722368496996,3.05344,3275.0,3274.5,3.05386]
[1722368497162,3.05344,3275.0,3273.9,5.50853]
[1722368497163,3.05344,3275.0,3274.4,3.05397]
[1722368497369,3.0538,3274.6,3274.0,0.6119429]
[1722368497572,3.0538,3274.6,3274.1,3.05422]
[1722368497947,3.0539,3274.5,3273.9,6.10879]
[1722368498190,3.0,3274.4,3273.9,3.05439]
[1722368498520,3.0,3274.4,3273.9,3.4209189]
[1722368498685,3.0,3274.4,3274.1,3.05419]
[1722368498894,0.04210649,3274.3,3274.1,3.05419]
[1722368499216,3.0,3274.6,3274.1,3.05419]
[1722368499369,3.0,3274.7,3274.3,3.05402]
[1722368499701,5.4465,3274.9,3274.3,3.05408]
[1722368500204,3.05371,3274.7,3274.1,3.05419]
[1722368500408,3.0,3274.6,3274.1,3.05419]
[1722368500786,3.0539,3274.5,3274.0,3.05432]
[1722368501350,3.05404,3274.4,3273.9,3.05441]
[1722368501661,3.0539,3274.5,3273.9,3.05438]
[1722368502408,3.0539,3274.5,3274.0,3.05436]
[1722368502869,3.0,3274.6,3274.1,3.05426]
[1722368503203,0.55,3274.5,3274.1,3.05426]
[1722368503498,3.05404,3274.4,3273.9,3.05438]
[1722368503823,0.55,3274.5,3274.0,3.05434]
[1722368503983,0.55,3274.5,3274.0,3.359778]
[1722368504182,3.60391,3274.5,3274.0,3.359778]
[1722368504378,3.05404,3274.4,3273.8,3.05448]
[1722368505311,0.04181647,3274.3,3273.8,3.05448]
[1722368505731,2.4885,3274.2,3273.5,3.05477]
[1722368506020,2.4885,3274.2,3273.7,3.05462]
[1722368506021,2.53025952,3274.2,3273.7,3.05462]
[1722368506460,2.53025952,3274.2,3273.7,3.66556]
[1722368506666,2.4885,3274.2,3273.7,6.1092]
[1722368506876,0.04183001,3274.1,3273.8,3.05455]
[1722368507564,0.04183001,3274.1,3273.8,3.05449]
[1722368507682,0.04183001,3274.1,3274.0,3.05436]
[1722368507979,7.21973338,3274.6,3274.1,3.05421]
[1722368508571,7.21973338,3274.6,3274.2,3.05417]
[1722368509513,7.21973338,3274.6,3274.2,3.05411]
[1722368509717,7.21973338,3274.6,3274.2,3.0541]
[1722368509911,7.21973338,3274.6,3274.0,0.36651528]
[1722368510116,7.21973338,3274.6,3274.5,3.0539]
[1722368510288,10.21973338,3274.6,3274.3,3.054]
[1722368511279,10.21973338,3274.6,3274.4,3.05391]
[1722368511721,10.21973338,3274.6,3274.2,3.05408]
[1722368512124,10.21973338,3274.6,3274.3,3.05407]
[1722368512495,13.27353338,3274.6,3274.1,6.10842]
[1722368512704,3.0,3274.6,3274.2,3.05416]
[1722368512906,6.05371,3274.7,3274.2,3.05416]
[1722368513116,6.05371,3274.7,3274.1,3.05425]
[1722368513426,3.05387,3274.6,3274.1,3.05425]
[1722368513819,3.0,3274.7,3274.1,3.05422]
[1722368514021,6.05371,3274.7,3273.9,3.0544]
[1722368514222,3.0538,3274.6,3274.1,3.05426]
[1722368514426,3.0538,3274.6,3274.0,3.05431]
[1722368514631,5.43358,3274.5,3273.8,3.05446]
[1722368514956,3.05429,3274.1,3273.6,3.05468]
[1722368515110,3.05429,3274.1,3273.3,6.10993]
[1722368515111,5.43412,3273.9,3273.3,6.10993]
[1722368515317,2.3796,3273.9,3273.4,3.665863]
[1722368516252,2.3796,3273.9,3273.5,3.05483]
[1722368516596,5.43406,3273.9,3273.4,3.665913]
[1722368516905,5.43406,3273.9,3273.5,0.3665913]
[1722368517520,5.43406,3273.9,3273.0,3.05524]
[1722368517521,3.05489,3273.5,3273.0,3.05524]
[1722368517721,3.05503,3273.3,3272.8,3.05542]
[1722368517927,6.10981,3273.5,3272.8,3.05542]
[1722368518292,6.10981,3273.5,3272.8,3.666523]
[1722368518493,3.05496,3273.4,3272.8,3.666523]
[1722368518743,3.05496,3273.4,3272.8,6.721953]
[1722368518951,3.05496,3273.4,3272.9,3.05538]
[1722368520147,0.04085837,3273.3,3272.9,3.05538]
[1722368521218,3.05527,3273.1,3272.4,3.05577]
[1722368521418,3.05527,3273.1,3272.0,8.35996]
[1722368521419,3.0553,3273.0,3272.5,3.05576]
[1722368521656,3.60547,3272.9,3272.3,3.05591]
[1722368521857,0.55,3272.9,3272.5,3.05575]
[1722368522038,0.0406402,3272.8,3272.5,3.05575]
[1722368522214,0.0406402,3272.8,3272.6,3.0556]
[1722368522587,3.0,3273.3,3273.0,3.05529]
[1722368522752,3.55,3273.3,3273.0,3.05529]
[1722368523513,7.21973338,3273.4,3273.0,3.666367]
[1722368523921,7.21973338,3273.4,3273.2,3.05506]
[1722368524150,3.0,3273.7,3273.4,3.0549]
[1722368524362,19.69973338,3274.0,3273.4,3.05487]
[1722368524867,19.69973338,3274.0,3273.2,3.05506]
[1722368525074,22.75414338,3274.0,3273.4,3.0549]
[1722368525369,22.75416338,3274.0,3273.4,3.05484]
[1722368525552,0.55,3273.9,3273.4,3.05484]
[1722368525741,3.55,3273.9,3273.4,3.05484]
[1722368526268,3.05456,3273.8,3273.2,3.05502]
[1722368526563,3.55,3273.9,3273.0,3.05524]
[1722368526564,6.60453,3273.9,3273.0,3.05524]
[1722368526885,2.4695,3273.4,3273.0,3.05524]
[1722368527319,2.4695,3273.4,3272.8,3.05544]
[1722368527520,5.52447,3273.4,3272.4,35.0]
[1722368527758,2.4695,3273.4,3273.0,3.05521]
[1722368527969,2.4695,3273.4,3273.1,3.05515]
[1722368528167,3.55,3273.9,3272.5,6.10473288]
[1722368528168,8.99854,3273.9,3273.2,3.0551]
[1722368528338,5.394,3273.9,3273.4,6.10979]
[1722368528544,5.394,3273.9,3273.4,3.05487]
[1722368529256,5.394,3273.9,3273.5,3.05478]
[1722368529458,5.394,3273.9,3273.4,3.05492]
[1722368529644,5.394,3273.9,3273.4,6.10978]
[1722368529845,5.394,3273.9,3273.5,3.05475]
[1722368530367,5.394,3273.9,3273.4,3.05486]
[1722368530567,8.44848,3273.9,3273.4,3.05486]
[1722368530874,3.0,3273.9,3273.7,3.05459]
[1722368531076,3.0,3274.2,3273.7,3.05459]
[1722368531261,3.05428,3274.1,3273.5,3.05477]
[1722368531430,3.0,3274.0,3273.5,3.05477]
[1722368531832,3.0,3274.0,3273.6,3.05473]
[1722368532032,3.0,3274.1,3273.6,3.05473]
[1722368532641,3.0,3274.1,3273.8,3.05453]
[1722368532842,3.0,3274.2,3273.8,3.05453]
[1722368533870,3.05427,3274.1,3273.6,3.05468]
[1722368534055,6.05418,3274.2,3273.2,3.05503]
[1722368534056,3.05452,3273.9,3273.2,3.05503]
[1722368534259,3.0,3273.8,3273.3,3.05496]
[1722368534505,3.05474,3273.6,3273.0,3.05524]
[1722368534703,5.45364,3273.6,3273.0,3.05524]
[1722368534908,5.45364,3273.6,3272.9,3.05534]
[1722368534909,2.3989,3273.6,3272.9,3.05534]
[1722368535201,3.05519,3273.2,3272.4,3.05582]
[1722368535401,3.05535,3273.0,3272.4,3.05582]
[1722368535608,3.05556,3272.8,3272.0,5.79618]
[1722368535905,0.03871725,3272.7,3272.2,6.11196]
[1722368536125,2.3989,3273.1,3272.3,0.06111481]
[1722368536270,3.0,3273.1,3272.7,3.05553]
[1722368536463,3.0,3273.1,3272.7,3.05557]
[1722368536680,3.05521,3273.1,3272.4,3.05581]
[1722368537027,3.05509,3273.3,3272.7,3.05556]
[1722368537309,3.05509,3273.3,3272.4,3.05581]
[1722368537310,3.55,3273.2,3272.4,3.05581]
[1722368538124,3.55,3273.2,3272.6,3.05561]
[1722368538301,3.55,3273.2,3272.7,3.05557]
[1722368539126,3.0,3273.2,3272.8,3.05546]
[1722368539270,3.0,3273.4,3273.0,3.05523]
[1722368539773,5.3996,3273.5,3273.0,3.05523]
[1722368539976,7.21973338,3273.6,3273.0,0.611071]
[1722368540182,7.21973338,3273.6,3273.0,3.05526]
[1722368540381,7.21973338,3273.6,3273.1,3.05519]
[1722368540586,10.27447338,3273.6,3273.1,3.05519]
[1722368541021,7.21973338,3273.6,3273.1,3.05516]
[1722368541219,7.21973338,3273.6,3273.3,3.05494]
[1722368541421,7.21973338,3273.6,3273.1,3.05516]
[1722368541708,7.21973338,3273.6,3272.9,3.05537]
[1722368541709,10.27447338,3273.6,3273.0,3.05525]
[1722368541930,7.21973338,3273.6,3273.1,3.05512]
[1722368542216,7.21973338,3273.6,3273.2,3.0551]
[1722368542510,7.21973338,3273.6,3273.3,3.05496]
[1722368543267,7.21973338,3273.6,3273.1,3.05514]
[1722368543498,7.21973338,3273.6,3273.1,3.666188]
[1722368543810,18.96313203,3274.8,3274.4,3.05396]
[1722368544023,2.473,3275.0,3274.4,3.05393]
[1722368544167,3.05359,3274.9,3274.2,3.05409]
[1722368544366,2.473,3275.0,3273.8,3.05449]
[1722368544367,3.05395,3274.5,3273.8,3.05449]
[1722368544568,3.05386,3274.6,3273.8,6.414399]
[1722368544764,3.05386,3274.6,3273.9,3.05443]
[1722368545168,3.05386,3274.6,3273.8,3.0545]
[1722368545169,3.05404,3274.4,3273.8,3.0545]
[1722368545414,3.05404,3274.4,3273.8,3.05454]
[1722368545618,0.55,3274.3,3273.8,3.0545]
[1722368545951,0.58409493,3274.3,3274.1,3.05426]
[1722368546161,0.03409493,3274.3,3273.9,3.0544]
[1722368546514,0.58409493,3274.3,3273.9,3.0544]
[1722368546728,0.58409493,3274.3,3274.0,3.05436]
[1722368546923,0.03409493,3274.3,3274.0,3.05436]
[1722368547160,0.03409493,3274.3,3274.0,3.390281]
[1722368547373,0.03409493,3274.3,3274.0,0.335981]
[1722368547662,0.03409493,3274.3,3274.0,3.390321]
[1722368547844,3.05367,3274.8,3274.2,3.05418]
[1722368548157,3.58426629,3274.7,3274.2,3.05409]
[1722368548667,3.58426629,3274.7,3274.4,3.05391]
[1722368548810,0.03426629,3274.7,3274.5,3.05389]
[1722368549214,0.55,3274.8,3274.5,3.05389]
[1722368549441,0.03426618,3274.6,3274.3,3.05403]
[1722368549666,0.03426618,3274.6,3274.2,3.05415]
[1722368549877,3.0,3274.7,3274.2,3.05415]
[1722368550017,0.03435089,3274.5,3274.2,3.05415]
[1722368550218,0.03440783,3274.6,3274.4,3.05398]
[1722368550436,6.48313203,3275.2,3274.9,3.05345]
[1722368550770,6.48313203,3275.2,3275.1,3.05334]
[1722368551065,8.88193203,3275.9,3275.2,3.05318]
[1722368551281,3.05269,3275.8,3275.2,3.05318]
[1722368551438,3.05269,3275.8,3275.0,3.05338]
[1722368551778,3.05313,3275.4,3274.8,3.05356]
[1722368552444,3.05316,3275.3,3274.7,38.05371]
[1722368552766,3.05316,3275.3,3274.7,3.05371]
[1722368553007,8.88193203,3275.9,3274.7,3.359021]
[1722368553305,3.05306,3275.4,3274.8,3.05356]
[1722368553447,0.55,3275.3,3274.8,3.05356]
[1722368553647,0.55,3275.3,3274.8,3.6948181]
[1722368554063,0.55,3275.3,3274.9,3.05351]
[1722368554290,0.55,3275.3,3274.9,3.05347]
[1722368554552,6.05274,3275.8,3275.1,3.05327]
[1722368554750,3.60283,3275.7,3275.1,3.05327]
[1722368554962,0.55,3275.7,3275.2,3.05323]
[1722368555194,3.05304,3275.5,3274.8,0.6412581]
[1722368555346,3.05295,3275.6,3275.0,3.05338]
[1722368555755,3.05295,3275.6,3274.9,3.45346891]
[1722368556593,3.05311,3275.4,3274.7,3.359031]
[1722368556775,0.55,3275.3,3274.7,3.05366]
[1722368556952,3.05334,3275.1,3274.5,38.05385]
[1722368557267,0.55,3275.3,3274.5,3.05389]
[1722368557462,3.05343,3275.0,3274.5,3.05389]
[1722368557648,0.55,3274.9,3274.3,3.05401]
[1722368557847,0.55,3274.9,3274.1,3.05418]
[1722368557848,0.58228047,3274.9,3274.1,3.05418]
[1722368558050,6.48313203,3275.9,3275.5,3.05294]
[1722368558301,2.322,3276.4,3275.4,3.05305]
[1722368558302,3.0525,3276.0,3275.4,3.05305]
[1722368558506,3.08316705,3275.8,3275.2,3.05319]
[1722368558800,0.03036015,3275.7,3275.2,3.05319]
[1722368559293,0.03036015,3275.7,3275.2,0.616766]
[1722368559466,0.03036015,3275.7,3275.6,3.05287]
[1722368559666,5.37418,3276.4,3275.7,3.0527]
[1722368559872,5.37418,3276.4,3275.8,3.05263]
[1722368560475,5.37418,3276.4,3275.9,3.05259]
[1722368560677,3.05229,3276.3,3275.7,3.0527]
[1722368561124,0.55,3276.2,3275.7,3.0527]
[1722368562005,3.6024,3276.2,3275.5,6.10586]
[1722368562165,0.55,3276.2,3275.5,3.0529]
[1722368562364,0.55,3276.2,3275.3,35.0]
[1722368562365,3.05242,3276.1,3275.6,3.05285]
[1722368563197,3.60222,3276.3,3275.6,6.10564]
[1722368563410,3.60222,3276.3,3275.6,6.10558]
[1722368563617,3.05232,3276.2,3275.6,6.10559]
[1722368563919,3.60241,3276.1,3275.6,3.05279]
[1722368564159,3.05241,3276.1,3275.4,6.10597]
[1722368564426,3.05241,3276.1,3275.6,3.05287]
[1722368565287,0.03063734,3276.0,3275.6,3.05287]
[1722368565986,3.08318734,3276.0,3275.4,6.10198288]
[1722368566240,0.55,3275.9,3275.4,3.05305]
[1722368566524,0.03059935,3275.8,3275.2,3.05316]
[1722368566821,3.05293,3275.6,3274.9,3.05346]
[1722368567019,3.60297,3275.5,3274.9,3.05349]
[1722368567182,3.05325,3275.2,3274.6,3.05379]
[1722368567381,3.05325,3275.2,3274.6,3.05373]
[1722368567581,3.05341,3275.1,3274.5,3.05389]
[1722368567934,3.08388961,3275.1,3274.5,3.05389]
[1722368568102,3.05345,3275.0,3274.4,3.0539]
[1722368568300,3.05345,3275.0,3274.4,3.664704]
[1722368568301,0.03036578,3274.9,3274.4,3.664704]
[1722368568519,0.03036578,3274.9,3274.0,38.05432]
[1722368568821,3.05362,3274.8,3274.0,3.05433]
[1722368568974,3.0536,3274.9,3274.1,3.05422]
[1722368569175,0.03029983,3274.7,3274.6,9.1614]
[1722368569375,0.02964182,3274.8,3274.7,9.16113]
[1722368569625,3.05229,3276.3,3274.7,1.639753]
[1722368569945,0.02916106,3276.2,3275.6,3.05279]
[1722368570625,3.05241,3276.1,3275.4,3.05297]
[1722368570976,3.05226,3276.3,3275.4,3.05297]
[1722368571235,0.02903915,3276.0,3275.6,6.10561]
[1722368571381,3.05246,3276.1,3275.5,0.31140265]
[1722368571582,0.55,3276.0,3275.5,0.31140265]
[1722368572219,0.55,3276.0,3275.6,3.05286]
[1722368572430,3.05241,3276.1,3275.5,0.31140265]
[1722368572640,0.55,3276.0,3275.5,0.31140265]
[1722368573079,0.55,3276.0,3275.5,3.36436265]
[1722368574329,3.05215,3276.4,3275.7,6.10548]
[1722368574624,3.05205,3276.5,3275.6,0.33643627]
[1722368574625,3.05205,3276.5,3275.9,3.05253]
[1722368574932,0.02961068,3276.4,3275.9,3.05253]
[1722368575090,0.02961068,3276.4,3275.3,3.05309]
[1722368575091,3.05241,3276.1,3275.3,3.05309]
[1722368575300,0.0293669,3276.0,3275.3,3.663718]
[1722368575617,8.98123203,3276.3,3275.3,3.05309]
[1722368575920,3.05259,3275.9,3275.3,3.05309]
[1722368576147,3.05242,3276.1,3275.4,3.05304]
[1722368576275,3.05242,3276.1,3274.6,5.2954]
[1722368576276,0.55,3276.0,3275.5,3.05296]
[1722368576477,0.0296093,3275.9,3275.5,3.05296]
[1722368576887,0.0296093,3275.9,3275.3,3.05307]
[1722368577250,0.0296093,3275.9,3275.3,0.305307]
[1722368577380,3.05293,3275.6,3274.9,3.05347]
[1722368577581,0.55,3275.5,3274.3,3.05407]
[1722368577939,3.0214,3275.5,3274.7,6.1073]
[1722368578220,3.08244029,3275.4,3274.7,6.71802]
[1722368578382,3.08244029,3275.4,3274.8,3.05361]
[1722368578579,3.08244029,3275.4,3274.7,0.61073]
[1722368578782,3.05326,3275.2,3274.6,3.05378]
[1722368579329,3.08228392,3275.1,3274.4,3.05397]
[1722368579632,3.08228392,3275.1,3274.3,3.05405]
[1722368579633,3.60343,3275.0,3274.3,3.05407]
[1722368579984,0.0287445,3274.9,3274.2,3.0541]
[1722368580183,3.05367,3274.8,3274.2,3.664944]
[1722368580421,0.0287445,3274.9,3274.0,3.05428]
[1722368580723,3.05367,3274.8,3273.8,5.78446]
[1722368580873,3.05367,3274.8,3274.0,3.05431]
[1722368580874,3.6324531,3274.7,3274.0,3.05431]
[1722368581278,3.05381,3274.6,3274.0,3.05431]
[1722368583974,3.0539,3274.5,3273.8,5.7845]
[1722368584125,3.0539,3274.5,3273.8,3.30845]
[1722368584340,3.0539,3274.5,3273.9,3.05439]
[1722368584722,2.8636,3274.7,3273.8,2.73]
[1722368585033,2.8636,3274.7,3274.2,3.05416]
[1722368585243,2.8636,3274.7,3274.1,3.05426]
[1722368585244,0.55,3274.7,3274.1,3.05426]
[1722368585582,3.60372,3274.7,3274.0,3.05434]
[1722368585777,3.60372,3274.7,3274.1,3.05421]
[1722368585975,3.60372,3274.7,3274.2,3.05416]
[1722368585976,0.55,3274.7,3274.2,3.05416]
[1722368586139,3.05367,3274.8,3274.0,3.05434]
[1722368586463,0.55,3274.7,3274.0,3.9960288]
[1722368586680,0.55,3274.7,3274.2,3.05417]
[1722368586910,3.05381,3274.6,3274.0,3.9960088]
[1722368587176,0.55,3274.5,3273.8,3.05448]
[1722368587468,3.60397,3274.5,3273.8,3.05448]
[1722368587626,3.60397,3274.5,3273.9,0.305448]
[1722368587825,3.60397,3274.5,3273.9,3.359848]
[1722368588054,3.60397,3274.5,3273.9,0.305448]
[1722368588252,3.05412,3274.3,3273.5,35.0]
[1722368588483,3.05433,3274.1,3273.3,3.05495]
[1722368588780,3.05433,3274.1,3273.4,0.305495]
[1722368588919,3.05433,3274.1,3273.4,35.305495]
[1722368589125,3.05433,3274.1,3273.4,0.305495]
[1722368589327,3.05433,3274.1,3273.4,3.360415]
[1722368589577,3.05436,3274.0,3273.4,3.360415]
[1722368589740,3.05433,3274.1,3273.4,3.360415]
[1722368590080,2.2634,3275.2,3273.7,3.05462]
[1722368590220,2.2634,3275.7,3275.0,3.0534]
[1722368590421,2.2634,3275.7,3274.6,0.06106822]
[1722368590626,3.05293,3275.6,3275.0,3.05341]
[1722368590863,3.05297,3275.5,3274.9,3.05349]
[1722368591483,5.3162,3275.7,3274.9,3.05347]
[1722368591645,5.3162,3275.7,3274.9,3.05345]
[1722368591847,5.3162,3275.7,3275.1,3.05333]
[1722368592145,5.3162,3275.7,3275.1,3.05327]
[1722368592677,3.05288,3275.6,3274.9,3.05344]
[1722368592843,5.3162,3275.7,3274.9,3.05344]
[1722368592844,3.60297,3275.5,3274.9,3.05344]
[1722368594746,0.55,3275.5,3275.0,3.05338]
[1722368595075,3.05298,3275.5,3274.9,0.61071]
[1722368595383,0.55,3275.4,3274.9,3.66421]
[1722368595746,0.55,3275.6,3275.0,3.05342]
[1722368596237,3.05297,3275.5,3275.0,3.05342]
[1722368596441,0.55,3275.4,3275.0,3.05342]
[1722368597780,5.3162,3275.7,3275.0,3.05342]
[1722368597781,3.60293,3275.6,3275.0,3.05342]
[1722368597983,3.60293,3275.6,3274.8,6.10718]
[1722368598241,3.60293,3275.6,3274.9,3.05352]
[1722368598397,2.2634,3275.7,3275.3,3.0531]
[1722368598602,3.0526,3275.9,3275.3,3.0531]
[1722368598803,3.0,3275.8,3275.3,3.0531]
[1722368599381,6.05272,3275.8,3275.1,0.06105983]
[1722368599714,3.05245,3276.1,3275.4,3.053]
[1722368599851,3.60251,3276.0,3275.4,3.053]
[1722368600216,0.55,3276.0,3275.4,3.053]
[1722368600501,0.55,3276.1,3275.4,3.053]
[1722368600710,3.05262,3275.9,3275.2,3.0532]
[1722368600917,3.05281,3275.7,3275.1,0.37250381]
[1722368601101,3.05281,3275.7,3275.1,0.31144398]
[1722368601406,3.60246,3276.1,3275.1,3.05328]
[1722368601554,0.55,3276.1,3275.1,3.11433982]
[1722368601755,3.05279,3275.7,3275.1,3.05328]
[1722368601951,3.05259,3275.9,3275.1,3.05328]
[1722368602155,0.55,3275.8,3275.2,3.05324]
[1722368602424,3.60271,3275.8,3275.2,3.05324]
[1722368602606,3.60271,3275.8,3275.2,3.663892]
[1722368602764,3.60271,3275.8,3275.2,0.610652]
[1722368603258,0.55,3275.8,3275.3,3.0531]
[1722368603462,3.05251,3276.0,3275.2,0.610652]
[1722368603463,0.55,3275.9,3275.2,0.610652]
[1722368603664,3.05284,3275.7,3275.2,0.610652]
[1722368603867,3.60266,3275.9,3275.2,3.663882]
[1722368604190,0.55,3275.9,3275.3,3.73096818]
[1722368604542,3.60262,3275.9,3275.3,3.73096818]
[1722368605202,0.55,3275.9,3275.3,3.73097818]
[1722368605402,3.05274,3275.8,3275.3,0.67782818]
[1722368605714,0.55,3276.0,3275.3,0.67782818]
[1722368606013,2.3364,3276.2,3275.1,0.06105978]
[1722368606014,3.05278,3275.7,3275.1,0.06105978]
[1722368606303,3.05269,3275.8,3275.1,3.11434978]
[1722368607401,3.05269,3275.8,3275.1,0.06105978]
[1722368607605,3.05269,3275.8,3274.8,3.664308]
[1722368607606,3.05293,3275.6,3274.8,0.610718]
[1722368607774,3.05293,3275.6,3274.8,3.05353]
[1722368607958,3.05293,3275.6,3274.8,3.05354]
[1722368608163,3.05274,3275.8,3274.8,3.05354]
[1722368608479,3.05297,3275.5,3274.9,3.05351]
[1722368608674,3.05297,3275.5,3274.9,3.664215]
[1722368608879,3.05278,3275.7,3274.9,0.610705]
[1722368609218,3.05307,3275.4,3274.7,3.05365]
[1722368609359,3.05341,3275.1,3274.6,3.0]
[1722368609574,3.05315,3275.3,3274.5,6.05388]
[1722368609883,0.55,3275.6,3274.8,3.05361]
[1722368610081,3.05284,3275.7,3275.0,3.05337]
[1722368610280,3.05297,3275.5,3274.6,0.06106201]
[1722368610618,3.05297,3275.5,3274.5,3.910787]
[1722368610619,3.05284,3275.7,3275.0,3.05341]
[1722368610762,0.55,3275.6,3275.0,3.05341]
[1722368610962,3.60292,3275.6,3275.0,3.05341]
[1722368611414,0.55,3275.6,3275.0,3.05341]
[1722368611709,3.05278,3275.7,3275.1,0.06106555]
[1722368612304,3.60274,3275.8,3275.2,3.05323]